Cogmind - Beta 14 @@@ ROGUE MODE // 2025.01.08 @ 19:12:45 Player: veb_robotron Result: Self-destructed Performance ------------- Evolutions (1) 500 Regions Visited (3) 600 Robots Destroyed (26) 130 Value Destroyed (676) 676 Prototype IDs (0) 0 Alien Tech Used (0) 0 Bonus (0) 0 TOTAL SCORE: 1906 Bonus ------- None Cogmind --------- Core Integrity 196/400 Matter 300/300 Energy 91/100 System Corruption 0% Temperature Cool (65) Movement Walking (260) Ox2 Location -9/Storage Parts ------- > --- POWER (1) -------- (None) > --- PROPULSION (4) --- Aluminum Leg Aluminum Leg > --- UTILITY (2) ------ High-capacity Storage Unit Light Armor Plating > --- WEAPON (2) ------- Small Laser Heavy Assault Rifle > --- INVENTORY (20) --- Light Ion Engine Light Ion Engine Light Ion Engine Heat Sink Heat Sink Small Storage Unit High-capacity Storage Unit Weight Redist. System Visual Processing Unit Sensor Array Terrain Scan Processor Grenade Launcher Grenade Launcher Plasma Cutter Peak State ------------ > --- POWER ------------ Light Ion Engine > --- PROPULSION ------- Aluminum Leg Aluminum Leg Aluminum Leg Aluminum Leg > --- UTILITY ---------- High-capacity Storage Unit Terrain Scanner > --- WEAPON ----------- Beam Rifle Particle Gun > --- INVENTORY -------- Light Ion Engine Aluminum Leg Aluminum Leg Heat Sink Heat Sink Small Storage Unit High-capacity Storage Unit Medium Laser Small Laser Assault Rifle [Rating: 12] Favorites ----------- Power Light Ion Engine Engine Light Ion Engine Propulsion Aluminum Leg Leg Aluminum Leg Wheel Wheel Utility High-capacity Storage Unit Device Terrain Scanner Storage High-capacity Storage Unit Protection Light Armor Plating Weapon Particle Gun Energy Gun Particle Gun Ballistic Gun Heavy Assault Rifle Build | -11 -10 -9 -9 ------- Run | Yrd Mat Mat Sto Slots Evolved 2 | . . 2 . Power . | . . . . Propulsion 2 | . . 2 . Utility . | . . . . Weapon . | . . . . Parts Attached 23 | 6 4 6 7 Power 2 | . 1 . 1 Engine 2 | . 1 . 1 Core . | . . . . Reactor . | . . . . Propulsion 10 | 3 1 4 2 Treads . | . . . . Leg 9 | 2 1 4 2 Wheel 1 | 1 . . . Hover . | . . . . Flight . | . . . . Utility 4 | 1 1 1 1 Device 1 | . 1 . . Storage 2 | 1 . 1 . Processor . | . . . . Hackware . | . . . . Protection 1 | . . . 1 Artifact . | . . . . Weapon 7 | 2 1 1 3 Energy Gun 6 | 2 1 1 2 Energy Cannon . | . . . . Ballistic Gun 1 | . . . 1 Ballistic Cannon . | . . . . Launcher . | . . . . Special Weapon . | . . . . Impact Weapon . | . . . . Slashing Weapon . | . . . . Piercing Weapon . | . . . . Special Melee Weapon . | . . . . Unidentified Prototypes . | . . . . Parts Lost 10 | . . 1 9 Power 1 | . . . 1 Propulsion 5 | . . 1 4 Utility 1 | . . . 1 Weapon 3 | . . . 3 Highest Loss Streak 7 | . . 1 7 To Critical Strikes . | . . . . Average Slot Usage (%) 93 | . 92 99 83 Engine 10 | . 8 11 11 Leg 38 | . 28 43 36 Device 9 | . 12 11 2 Storage 11 | . 14 11 11 Energy Gun 22 | . 28 22 20 Peak Build Rating 12 | 5 8 12 12 Average Rating 9 | 4 6 10 11 On Entrance 6 | . 5 8 12 Naked Turns . | . . . . Heaviest Build 50 | 8 14 50 50 Greatest Support 40 | 10 20 40 40 Greatest Overweight (x) 2 | 2 . 1 1 Average Overweight (x) . | . . 1 1 Largest Inventory Capacity 20 | 8 8 20 20 Average Capacity 16 | 7 8 19 20 Most Carried 20 | 7 8 16 20 Average Carried 10 | 4 7 9 17 Final Capacity 20 | 8 8 20 20 Final Carried 16 | 7 8 16 14 Class Distribution -------------------- 72% | Scavenger-Mutant 27% | Mutant Dominant Class ---------------- Mutant | -10/Materials Scavenger-Mutant | -9/Materials Scavenger-Mutant | -9/Storage Resources | -11 -10 -9 -9 ----------- Run | Yrd Mat Mat Sto Matter Collected 411 | 260 40 60 51 Remotely . | . . . . Salvage Created 990 | . 151 548 291 Parts 63 | . 11 27 25 Haulers Intercepted . | . . . . Recyclers Shooed 2 | . . 2 . Parts Field Recycled . | . . . . Retrieved Matter . | . . . . Parts Self-Destructed . | . . . . Prevented . | . . . . Kills | -11 -10 -9 -9 ------- Run | Yrd Mat Mat Sto Combat Hostiles Destroyed 20 | . 3 8 9 Guns 17 | . 2 6 9 Classes Destroyed 7 | . 2 3 2 Worker 2 | . 2 . . Builder 1 | . . . 1 Recycler 2 | . . 2 . Watcher 1 | . . 1 . Swarmer 5 | . . . 5 Grunt 10 | . 3 5 2 Sentry 5 | . . 3 2 Best Kill Streak 3 | . 2 2 3 Combat Bots Only 3 | . 1 2 3 Max Kills in Single Turn 2 | . 2 1 2 Gunslinging 1 | . . . 1 Exploded . | . . . . Melee . | . . . . Uniques/NPCs Destroyed . | . . . . Combat | -11 -10 -9 -9 -------- Run | Yrd Mat Mat Sto Hostile Shots Fired 144 | . 27 39 78 Missed 32 | . 5 6 21 Damage Taken 1337 | . 271 451 615 Core 269 | . 65 122 82 Absorbed by Shields . | . . . . Regen/Repaired (Parts) 69 | . . 69 . Core Remaining (%) 87 | 100 74 . . Volleys Fired 75 | . 24 27 24 Largest 2 | . 2 2 2 Hottest 121 | . 90 121 121 Shots Fired 144 | . 47 54 43 Gun 144 | . 47 54 43 Cannon . | . . . . Launcher . | . . . . Special . | . . . . Kinetic 2 | . . . 2 Thermal 142 | . 47 54 41 Explosive . | . . . . Electromagnetic . | . . . . Robot Hit Streak 8 | . 8 6 4 Robot Miss Streak 4 | . 4 3 4 Penetration Max . | . . . . Secondary Targets 3 | . . 2 1 Max Gunslinging Chain 1 | . . 1 1 Shots Hit Robots 85 | . 27 33 25 Core Hits 41 | . 10 17 14 Critical Kills . | . . . . Critical Parts Destroyed . | . . . . Critical Strikes 10 | . 1 6 3 Burn 10 | . 1 6 3 Melee Attacks . | . . . . Impact . | . . . . Slashing . | . . . . Piercing . | . . . . Sneak Attacks . | . . . . Combat Hostiles . | . . . . Follow-up Attacks . | . . . . Damage Inflicted 1253 | . 326 515 412 Guns 1253 | . 326 515 412 Cannons . | . . . . Explosions . | . . . . Melee . | . . . . Ramming . | . . . . Kinetic 27 | . . . 27 Thermal 1226 | . 326 515 385 Explosive . | . . . . Electromagnetic . | . . . . Impact . | . . . . Slashing . | . . . . Piercing . | . . . . Highest Corruption . | . . . . Average Corruption . | . . . . Corruption Purged . | . . . . Corruption Blocked . | . . . . Overload Shots . | . . . . Overflow Damage . | . . . . Projectiles . | . . . . Explosions . | . . . . Melee . | . . . . Knockbacks . | . . . . Impact . | . . . . Kinetic . | . . . . Secondary . | . . . . Self-Inflicted Damage . | . . . . Shots . | . . . . Rammed . | . . . . Targets Rammed . | . . . . Kicked . | . . . . Crushed . | . . . . Highest Temperature 402 | . 333 402 270 Average Temperature 122 | . 106 152 97 Received Heat Transfer 612 | . 147 270 195 Effects 2 | . 2 . . Energy Bleed 1 | . 1 . . Interference 1 | . 1 . . Siege Activations . | . . . . Robots Corrupted . | . . . . Combat Hostiles . | . . . . Parts Fried . | . . . . Impact Corruptions . | . . . . Robots Melted 3 | . 1 2 . Combat Hostiles 3 | . 1 2 . Parts Melted 9 | . 2 5 2 Heat Transferred 3829 | . 930 1739 1160 Parts Sabotaged . | . . . . Parts Stolen . | . . . . Parts Stripped . | . . . . Power Chain Reactions . | . . . . Alert | -11 -10 -9 -9 ------- Run | Yrd Mat Mat Sto Peak Influence 314 | . 112 314 300 Initial 65 | . . 46 65 Average 135 | . 63 158 178 Maximum Alert Level 1 | . . 1 1 Low Security (%) 73 | 100 100 75 44 Level 1 26 | . . 24 55 Level 2 . | . . . . Level 3 . | . . . . Level 4 . | . . . . Level 5 . | . . . . High Security . | . . . . Max Security . | . . . . Squads Dispatched 4 | . 2 . 2 Investigation . | . . . . Extermination . | . . . . Reinforcement 4 | . 2 . 2 Assault . | . . . . Garrison . | . . . . Intercept . | . . . . Searches Triggered . | . . . . Construction Impeded . | . . . . Haulers Reinforced . | . . . . Active Scanning Responses . | . . . . Cargo Convoy Interrupts . | . . . . Stealth | -11 -10 -9 -9 --------- Run | Yrd Mat Mat Sto Distress Signals 6 | . 2 2 2 Communications Jammed . | . . . . Distress Signals . | . . . . Times Spotted 40 | . 10 14 16 Peak Tracking Total 5 | . 5 4 5 Tactical Retreats 3 | . . 2 1 Traps | -11 -10 -9 -9 ------- Run | Yrd Mat Mat Sto Traps Triggered . | . . . . Indirectly . | . . . . Trap Hack Attempts . | . . . . Triggered . | . . . . Disarmed . | . . . . Reprogrammed . | . . . . Reused . | . . . . Traps Extracted . | . . . . Installed . | . . . . Triggered . | . . . . Machines | -11 -10 -9 -9 ---------- Run | Yrd Mat Mat Sto Machines Disabled . | . . . . Max in Single Turn . | . . . . Machines Repaired . | . . . . Machines Dismantled . | . . . . Machines Sabotaged . | . . . . Overloaded Fab Kills . | . . . . Hacking | -11 -10 -9 -9 --------- Run | Yrd Mat Mat Sto Machines Accessed 4 | . 1 3 . Terminals 3 | . 1 2 . Fabricators . | . . . . Repair Stations 1 | . . 1 . Recycling Units . | . . . . Scanalyzers . | . . . . Garrison Access . | . . . . Total Hacks 13 | . 5 8 . Successful 7 | . 3 4 . Failed 6 | . 2 4 . Catastrophic 1 | . . 1 . Database Lockouts . | . . . . Manual . | . . . . Terminals 11 | . 5 6 . Fabricators . | . . . . Repair Stations 2 | . . 2 . Recycling Units . | . . . . Scanalyzers . | . . . . Garrison Access . | . . . . Terminal Hacks 5 | . 3 2 . Branch Access Points 1 | . 1 . . Alert Level 1 | . . 1 . Locate Traps 1 | . . 1 . Maintenance Status 1 | . 1 . . Security Status 1 | . 1 . . Fabricator Hacks . | . . . . Repair Station Hacks 2 | . . 2 . Scan Component 1 | . . 1 . Repair 1 | . . 1 . Recycling Unit Hacks . | . . . . Scanalyzer . | . . . . Garrison Access Hacks . | . . . . Unauthorized Hacks . | . . . . Terminals . | . . . . Fabricators . | . . . . Repair Stations . | . . . . Recycling Units . | . . . . Scanalyzers . | . . . . Garrison Access . | . . . . Data Cores Recovered . | . . . . Used . | . . . . Hacking Detections 4 | . 1 3 . Full Trace Events . | . . . . Feedback Events . | . . . . Feedback Blocked . | . . . . Robot Schematics Acquired . | . . . . Robots Built . | . . . . Authchips . | . . . . Time . | . . . . Total Robot Build Rating . | . . . . Part Schematics Acquired . | . . . . Parts Built . | . . . . Authchips . | . . . . Time . | . . . . Total Part Build Rating . | . . . . Parts Repaired 1 | . . 1 . Time 26 | . . 26 . Parts Recycled . | . . . . Recycled Matter . | . . . . Retrieved Matter . | . . . . Retrieved Components . | . . . . Parts Scanalyzed . | . . . . Part Schematics Acquired . | . . . . Parts Damaged . | . . . . Bothacking | -11 -10 -9 -9 ------------ Run | Yrd Mat Mat Sto Used RIF Installer . | . . . . Robots Hacked . | . . . . Non-combat . | . . . . Combat . | . . . . Robot Hacks Applied . | . . . . Relay Couplers Released . | . . . . Fabnet Peak Effective % . | . . . . Robots Rewired . | . . . . Allies Hacked . | . . . . Hacks Repelled . | . . . . Allies | -11 -10 -9 -9 -------- Run | Yrd Mat Mat Sto Total Allies . | . . . . Largest Group . | . . . . Highest-Rated Group . | . . . . Highest-Rated Ally . | . . . . Total Orders . | . . . . Ally Attacks . | . . . . Total Damage . | . . . . Kills . | . . . . Allies Corrupted . | . . . . Allies Melted . | . . . . Intel | -11 -10 -9 -9 ------- Run | Yrd Mat Mat Sto Robot Analysis Total . | . . . . Derelict Logs Recovered . | . . . . Drone Launches . | . . . . Drone Recoveries . | . . . . Exploration | -11 -10 -9 -9 ------------- Run | Yrd Mat Mat Sto Turns Passed 996 | 58 202 481 255 Spaces Moved 409 | 40 94 196 79 Core 11 | 11 . . . Treads . | . . . . Legs 396 | 27 94 196 79 Wheels 2 | 2 . . . Hover . | . . . . Flight . | . . . . Fastest Speed 50 | 50 120 190 190 Average Speed 165 | 101 120 190 190 Slowest Speed 190 | 150 120 190 190 Overloaded Moves . | . . . . Propulsion Burnouts . | . . . . Robots Hopped . | . . . . Cave-ins Triggered . | . . . . Exploration Rate (%) 18 | 5 17 20 31 Regions Visited 3 Branch Regions 1 Pre-discovered Areas . | . . . . Known Exits Taken . | . . . . Unknown Exits Taken 3 | 1 1 1 . Scrap Searched . | . . . . Spaces Dug . | . . . . Terrain Destroyed . | . . . . Melee . | . . . . Projectile . | . . . . AOE . | . . . . Terrain Rammed . | . . . . Walls Destroyed . | . . . . Machines Disabled . | . . . . Actions | -11 -10 -9 -9 --------- Run | Yrd Mat Mat Sto Total 588 | 57 139 250 142 Wait 32 | . . 10 22 Move 406 | 39 93 195 79 Hop . | . . . . Pick Up 41 | 12 10 12 7 Fast Attach 1 | . 1 . . Attach 17 | 5 2 4 6 Detach . | . . . . Swap 5 | 1 1 2 1 Drop 11 | . 8 . 3 Fire 75 | . 24 27 24 Melee . | . . . . Ram . | . . . . Kick . | . . . . Crush . | . . . . Escape Stasis . | . . . . Rewire . | . . . . Trap . | . . . . Miscellaneous . | . . . . Route ------- -11/Scrapyard -10/Materials (discovered 3 exits: *Mat / *Min x2) -9/Materials -9/Storage History --------- Turn | Location | Event 25 | -11/Scrapyard | Discovered new exit (range 15) 59 | -11/Scrapyard | Entered Materials 74 | -10/Materials | Identified exit to Mines 133 | -10/Materials | Discovered new exit (range 13) 261 | -10/Materials | Entered another Materials area 261 | -9/Materials | Evolved 2 slots: Propulsion x2 327 | -9/Materials | Repaired Aluminum Leg 554 | -9/Materials | Build established: Scavenger-Mutant 719 | -9/Materials | Discovered new exit (range 6) 742 | -9/Materials | Entered Storage 990 | -9/Storage | Core integrity fell below 50% 997 | -9/Storage | Self-destructed Last Messages --------------- K-01 Serf collects debris. Aluminum Leg destroyed. R-06 Scavenger collects Aluminum Leg. K-01 Serf collects debris. Beam Rifle destroyed. K-01 Serf destroyed. Extracted 10 matter. R-06 Scavenger collects Ion Engine. Extracted 10 matter. Med. Laser destroyed. Extracted 5 matter. Extracted 10 matter. Lgt. Ion Engine destroyed. R-06 Scavenger collects Sml. Laser. Y-45 Defender destroyed. Switching to secondary target: G-34 Mercenary. G-34 Mercenary destroyed. Extracted 1 matter. Aluminum Leg destroyed. R-06 Scavenger collects Sml. Laser. Map ----- +----------------------------------------------------+ | ????????# #???????????????????????????? | | ????????# =% #???????????????????????????? | | ????????# =% #??????? ???????????????????? | | ???????###########+##########/##?????????????????? | | ???????# #[% ???????????????? | | ????????????" +[* " ???????????????? | | ????????????"" # "%" ???????????????? | | ????????????""" ########### ##????????????????? | | ??????????????"%|# #? #?????????????????? | | ????????????? "!=# = #? #?????????????????? | | ???????+ """"!%# =[#? #?????????????????? | | ???????# =[ # #? #?????????????????? | | ????????#######+## % #? #?????????????????? | | ????????##### % ##+###+#### #?????????????????? | | ??+ [ #??????????????????? | | ??# % #??????????????????? | | ??# """ ### ####r #??????????????????? | | ?????""" ???######??# """ #??????????????????? | | ?????"""????????????# """ #??????????????????? | | ????????????????????# """ ### #?????????????? | | ????????????????????# #?????????????? | | ????????????????????# =%[ #?????????????? | | ????????????????????# g!%"" +?????????????? | | ????????????????????# rrY" #?????????????? | | ????????????????????# "" ^#?????????????? | | ????????????????????# =%@ #?????????????? | | ????????????????????# #?????????????? | | ????????????????????# #######?????????????? | | ????????????????????## #### #???????????????????? | | ?????????????????????# ???? #???????????????????? | | ?????????????????????# ???? #???????????????????? | | ?????????????????????# ?????#???????????????????? | | ?????????????????????# ?????????????????????????? | | ????????????????????? ??????????????????????????? | | ????????????????????? T??????????????????????????? | | ???????????????????? ??????????????????????????? | | ????????????????????# ???????????????????????????? | | ?????????????????????????????????????????????????? | | ?????????????????????????????????????????????????? | | ?????????????????????????????????????????????????? | | ?????????????????????????????????????????????????? | | ?????????????????????????????????????????????????? | | ?????????????????????????????????????????????????? | | ?????????????????????????????????????????????????? | | ?????????????????????????????????????????????????? | | ?????????????????????????????????????????????????? | | ?????????????????????????????????????????????????? | | ?????????????????????????????????????????????????? | | ?????????????????????????????????????????????????? | | ?????????????????????????????????????????????????? | +----------------------------------------------------+ Best States ------------- Heat Dissipation 28 Energy Generation 10 Energy Capacity 125 Matter Stores 300 Matter Capacity 300 Sight Range 16 Terrain Scan Range 14 Terrain Scan Density 10 Armor Coverage 150 Evasion (%) 55 Item Schematics ----------------- None Robot Schematics ------------------ None Fabricated ------------ Nothing Alien Tech Used ----------------- None Achievements -------------- None Challenges ------------ None Game ------ Seed ScatterReactiveCharge Manual? 0 Play Time 00:13:47 Cumulative 33.9 hours Start 2025.01.08 @ 18:58:42 End 2025.01.08 @ 19:12:45 Sessions 1 Manual Loads 0 Difficulty Rogue Special Mode None Game No. 32 Rogue 32 Adventurer 0 Explorer 0 Win Type - Total 0 Types 0/0/0/0/0/0/0/0/0 Lore% 12 Gallery% 37 Achievement% 28 Wizard Run 0 Options --------- Layout 1 ASCII 0 Keyboard 0 Movement Mouse Keybinds 0 Fullscreen 1 Font 24/Smallcaps Map View 50x35 Zoom Use 1% Tactical HUD 0 Map Filters NONE Filters NONE Steam 1 RUN: 3abf1dc0-76eb-40d5-a171-37c48f5342c1